bitfinex/quotes_BTCUSD_20250615
["timestamp","ask_amount","ask_price","bid_price","bid_amount"]
[1750004168144,6.9405181,105710.0,105700.0,0.00014143]
[1750004168382,6.94051818,105710.0,105700.0,0.00014143]
[1750004168637,6.94051814,105710.0,105700.0,0.00014143]
[1750004168861,6.93389163,105710.0,105700.0,0.00014143]
[1750004169085,6.94051806,105710.0,105700.0,0.00014143]
[1750004169304,6.93389163,105710.0,105700.0,0.00014143]
[1750004169521,6.94051832,105710.0,105700.0,0.00014143]
[1750004169749,6.94051835,105710.0,105700.0,0.00014143]
[1750004169978,6.94051834,105710.0,105700.0,0.00014143]
[1750004170192,6.94051835,105710.0,105700.0,0.00014143]
[1750004170632,6.94051833,105710.0,105700.0,0.00014143]
[1750004171352,6.94051832,105710.0,105700.0,0.00014143]
[1750004171875,6.97824617,105710.0,105700.0,0.00014143]
[1750004172526,6.97824617,105710.0,105680.0,0.0384581]
[1750004172527,0.20815529,105690.0,105680.0,0.0384581]
[1750004172751,6.76148726,105690.0,105680.0,0.0384581]
[1750004172977,6.76811395,105690.0,105680.0,0.0384581]
[1750004173192,6.79655895,105690.0,105680.0,0.0384581]
[1750004173410,6.79655976,105690.0,105680.0,0.0384581]
[1750004173674,6.79655975,105690.0,105680.0,0.0384581]
[1750004173914,6.79655974,105690.0,105680.0,0.0384581]
[1750004174333,6.79655975,105690.0,105680.0,0.04732985]
[1750004174551,6.79659975,105690.0,105680.0,0.04732986]
[1750004174756,6.78997226,105690.0,105680.0,0.04732986]
[1750004174995,6.79659968,105690.0,105680.0,0.0384581]
[1750004175188,6.79659977,105690.0,105680.0,0.04732986]
[1750004175694,6.79660653,105690.0,105680.0,0.0473389]
[1750004175914,6.7966065,105690.0,105680.0,0.04733891]
[1750004176139,6.7966065,105690.0,105680.0,0.04733895]
[1750004176360,6.79660649,105690.0,105680.0,0.0384581]
[1750004176814,6.82501843,105690.0,105680.0,0.0384581]
[1750004177033,5.61439584,105690.0,105680.0,0.0384581]
[1750004177278,6.82501834,105690.0,105680.0,0.0536581]
[1750004177499,6.82501831,105690.0,105680.0,0.0536581]
[1750004177725,6.8183842,105690.0,105680.0,0.0536581]
[1750004177946,6.82501826,105690.0,105680.0,0.0536581]
[1750004178173,6.8183842,105690.0,105680.0,0.07141999]
[1750004178394,6.82501831,105690.0,105680.0,0.0536581]
[1750004178610,6.8250183,105690.0,105680.0,0.0536581]
[1750004178831,5.60776162,105690.0,105680.0,0.07141999]
[1750004179089,5.61439572,105690.0,105680.0,0.07141999]
[1750004179325,6.8250183,105690.0,105680.0,0.07141999]
[1750004179543,6.8250183,105690.0,105680.0,0.07141991]
[1750004179544,6.8183842,105690.0,105680.0,0.07141991]
[1750004179991,6.82501828,105690.0,105680.0,0.07141991]
[1750004180251,6.82501764,105690.0,105680.0,0.07141989]
[1750004180499,6.8183842,105690.0,105680.0,0.0536581]
[1750004180715,6.82501649,105690.0,105680.0,0.07141988]
[1750004180942,6.8183842,105690.0,105680.0,0.07141988]
[1750004181190,6.8250162,105690.0,105680.0,0.07141988]
[1750004181406,6.8250162,105690.0,105680.0,0.06910128]
[1750004181843,6.82501668,105690.0,105680.0,0.06910107]
[1750004182272,6.82701668,105690.0,105680.0,0.0513395]
[1750004182487,6.82701656,105690.0,105680.0,0.0513395]
[1750004183172,6.82901662,105690.0,105680.0,0.0513395]
[1750004183861,6.82901649,105690.0,105680.0,0.0513395]
[1750004184073,6.8290165,105690.0,105680.0,0.0513395]
[1750004184284,6.8223842,105690.0,105680.0,0.0513395]
[1750004184500,6.82901654,105690.0,105680.0,0.0513395]
[1750004185382,6.8223842,105690.0,105680.0,0.0513395]
[1750004185610,6.82901636,105690.0,105680.0,0.0513395]
[1750004185829,6.82901637,105690.0,105680.0,0.0513395]
[1750004186238,6.82901636,105690.0,105680.0,0.0513395]
[1750004186505,6.82901635,105690.0,105680.0,0.0513395]
[1750004186729,6.8223842,105690.0,105680.0,0.0513395]
[1750004186942,6.8290163,105690.0,105680.0,0.0513395]
[1750004187147,6.8223842,105690.0,105680.0,0.0513395]
[1750004187360,6.82901633,105690.0,105680.0,0.0513395]
[1750004187562,6.8223842,105690.0,105680.0,0.0513395]
[1750004187816,6.8290152,105690.0,105680.0,0.0513395]
[1750004188289,6.8223842,105690.0,105680.0,0.0513395]
[1750004188536,6.82901537,105690.0,105680.0,0.0513395]
[1750004188758,6.8223842,105690.0,105680.0,0.0513395]
[1750004189002,6.82901538,105690.0,105680.0,0.0513395]
[1750004189887,6.82901539,105690.0,105680.0,0.0513395]
[1750004190116,6.8290154,105690.0,105680.0,0.0513395]
[1750004190323,5.61176162,105690.0,105680.0,0.0702995]
[1750004190632,6.82901532,105690.0,105680.0,0.0702995]
[1750004190886,6.82901529,105690.0,105680.0,0.0702995]
[1750004191338,6.82901522,105690.0,105680.0,0.0702995]
[1750004191563,6.8223842,105690.0,105680.0,0.0702995]
[1750004191987,6.82901514,105690.0,105680.0,0.0702995]
[1750004192200,6.8223842,105690.0,105680.0,0.0702995]
[1750004192627,6.82901526,105690.0,105680.0,0.0702995]
[1750004192843,6.82901527,105690.0,105680.0,0.0702995]
[1750004193092,6.8223842,105690.0,105680.0,0.0702995]
[1750004193307,6.82901525,105690.0,105680.0,0.0702995]
[1750004193521,6.8223842,105690.0,105680.0,0.0702995]
[1750004193730,6.82901531,105690.0,105680.0,0.0702995]
[1750004193920,6.8223842,105690.0,105680.0,0.0702995]
[1750004194573,6.82901527,105690.0,105680.0,0.0702995]
[1750004194790,6.8223842,105690.0,105680.0,0.0702995]
[1750004195011,6.82901528,105690.0,105680.0,0.0702995]
[1750004195232,6.82901524,105690.0,105680.0,0.0702995]
[1750004195470,6.82901526,105690.0,105680.0,0.0702995]
[1750004195718,6.8290153,105690.0,105680.0,0.0702995]
[1750004196160,6.8223842,105690.0,105680.0,0.0702995]
[1750004196377,6.82901532,105690.0,105680.0,0.0702995]
[1750004196590,5.61839337,105690.0,105680.0,0.0702995]
[1750004196829,6.82901598,105690.0,105680.0,0.0702995]
[1750004197265,6.82901597,105690.0,105680.0,0.0702995]
[1750004197482,6.829016,105690.0,105680.0,0.0702995]
[1750004197905,6.82901601,105690.0,105680.0,0.0702995]
[1750004198123,6.82901611,105690.0,105680.0,0.0702995]
[1750004198356,6.8223842,105690.0,105680.0,0.0702995]
[1750004198575,6.82901612,105690.0,105680.0,0.0702995]
[1750004198787,6.82901613,105690.0,105680.0,0.0702995]
[1750004198996,6.6656242,105690.0,105680.0,0.0702995]
[1750004199210,6.82873613,105690.0,105680.0,0.0702995]
[1750004199440,6.82873614,105690.0,105680.0,0.0702995]
[1750004199650,6.8221042,105690.0,105680.0,0.0702995]
[1750004199864,6.82873615,105690.0,105680.0,0.0702995]
[1750004200084,6.82873614,105690.0,105680.0,0.0702995]
[1750004200296,6.8221042,105690.0,105680.0,0.0702995]
[1750004200746,6.91359271,105690.0,105680.0,0.0208395]
[1750004200984,6.9202243,105690.0,105680.0,0.0208395]
[1750004201207,6.95795213,105690.0,105680.0,0.0208395]
[1750004201422,6.92302521,105690.0,105680.0,0.0208395]
[1750004201636,6.95794223,105690.0,105680.0,0.0208395]
[1750004201878,6.95594218,105690.0,105680.0,0.0208395]
[1750004202092,6.95394218,105690.0,105680.0,0.0208395]
[1750004202332,6.95031098,105690.0,105680.0,0.0208395]
[1750004202558,6.96094217,105690.0,105680.0,0.0208395]
[1750004203304,6.96094439,105690.0,105680.0,0.0208395]
[1750004203534,6.95431098,105690.0,105680.0,0.0208395]
[1750004203765,6.96094456,105690.0,105680.0,0.0208395]
[1750004204221,6.95431098,105690.0,105680.0,0.0208395]
[1750004204460,6.96094461,105690.0,105680.0,0.0208395]
[1750004204688,6.95431098,105690.0,105680.0,0.0208395]
[1750004204917,6.96094456,105690.0,105680.0,0.0208395]
[1750004205157,6.96094457,105690.0,105680.0,0.0102995]
[1750004205397,6.96094448,105690.0,105680.0,0.0102995]
[1750004205656,6.96094454,105690.0,105680.0,0.0102995]
[1750004205881,6.96094453,105690.0,105680.0,0.0102995]
[1750004206107,6.96757808,105690.0,105680.0,1e-08]
[1750004206320,7.45327808,105690.0,105680.0,1e-08]
[1750004206737,7.45327807,105690.0,105680.0,1e-08]
[1750004207162,7.45327806,105690.0,105680.0,1e-08]
[1750004207372,7.45327812,105690.0,105680.0,1e-08]
[1750004207580,7.40891669,105690.0,105680.0,1e-08]
[1750004207790,7.4155338,105690.0,105680.0,1e-08]
[1750004208248,7.40891669,105690.0,105680.0,1e-08]
[1750004208695,7.41553382,105690.0,105680.0,1e-08]
[1750004208877,7.41553384,105690.0,105680.0,1e-08]
[1750004209089,7.20737848,105690.0,105680.0,1e-08]
[1750004209306,7.39661103,105690.0,105680.0,1e-08]
[1750004209530,7.41553366,105690.0,105680.0,1e-08]
[1750004209741,0.81350597,105670.0,105660.0,0.05186]
[1750004209973,0.97006597,105670.0,105660.0,0.05186]
[1750004210621,1.06630773,105670.0,105660.0,0.05186]
[1750004210855,1.06630773,105670.0,105660.0,0.03536]
[1750004211067,1.09480499,105670.0,105660.0,0.03536]
[1750004211288,1.09480499,105670.0,105660.0,0.03736]
[1750004211505,6.59356528,105670.0,105660.0,0.03736]
[1750004211725,6.14485399,105670.0,105660.0,0.03736]
[1750004211941,6.24108321,105670.0,105660.0,0.03736]
[1750004212205,6.18613399,105670.0,105660.0,0.05246]
[1750004213273,5.5396227,105670.0,105660.0,0.05246]
[1750004213533,5.98825399,105670.0,105660.0,0.05246]
[1750004213758,6.14501399,105670.0,105660.0,0.05246]
[1750004216006,6.14501399,105670.0,105660.0,0.06132263]
[1750004216221,6.24116321,105670.0,105660.0,0.06132263]
[1750004217330,6.24116321,105670.0,105660.0,0.05246]
[1750004217551,6.24116321,105670.0,105660.0,0.06132263]
[1750004217765,6.24779629,105670.0,105660.0,0.06134471]
[1750004217995,6.24779626,105670.0,105660.0,0.06134471]
[1750004218216,6.24116321,105670.0,105660.0,0.05246]
[1750004218426,6.24779632,105670.0,105660.0,0.05246]
[1750004218685,6.24779636,105670.0,105660.0,0.05246]
[1750004218918,6.24779636,105670.0,105640.0,0.03026]
[1750004218919,0.54823409,105650.0,105640.0,0.03026]
[1750004219148,5.95979614,105650.0,105640.0,0.03026]
[1750004219389,0.64447585,105650.0,105640.0,0.03026]
[1750004219611,0.64447585,105650.0,105640.0,0.85836613]
[1750004219612,0.02839428,105650.0,105640.0,0.85836613]
[1750004219835,0.1851541,105650.0,105640.0,0.86783161]
[1750004220067,0.01892916,105650.0,105640.0,0.8678317]
[1750004220281,0.02839383,105650.0,105640.0,0.9734464]
[1750004220506,0.02839383,105650.0,105640.0,0.9924064]
[1750004220724,0.03785868,105650.0,105640.0,0.89625718]
[1750004221195,0.04732362,105650.0,105640.0,0.29094589]
[1750004221417,0.20412416,105650.0,105640.0,0.29094589]
[1750004221632,0.20512416,105650.0,105640.0,0.29094589]
[1750004221891,0.84294038,105650.0,105640.0,0.27201484]
[1750004222120,0.3148487,105650.0,105640.0,0.262549]
[1750004222341,0.92015999,105650.0,105640.0,0.27201484]
[1750004222570,0.94976865,105650.0,105640.0,0.27201484]
[1750004222786,0.33499242,105650.0,105640.0,0.27201484]
[1750004223005,0.93083868,105650.0,105640.0,0.06376085]
[1750004223885,0.83468946,105650.0,105640.0,0.25308307]
[1750004224107,0.83468946,105650.0,105640.0,0.2720152]
[1750004224325,0.83468937,105650.0,105640.0,0.2720152]
[1750004224778,0.83468937,105650.0,105640.0,0.26254918]
[1750004226132,0.83468937,105650.0,105640.0,0.04922]
[1750004226610,0.86314337,105650.0,105640.0,0.04922]
[1750004227279,0.3539813,105650.0,105640.0,0.04922]
[1750004227512,0.86314337,105650.0,105640.0,0.04922]
[1750004228458,0.25783208,105650.0,105640.0,0.04922]
[1750004228680,0.86314337,105650.0,105640.0,0.04922]
[1750004230913,0.25783208,105650.0,105640.0,0.23854222]
[1750004231133,0.86314337,105650.0,105640.0,0.23854222]
[1750004231368,0.86314337,105650.0,105640.0,0.04422]
[1750004231615,1.02038337,105650.0,105640.0,0.24300833]
[1750004231833,1.02050337,105650.0,105640.0,0.24300833]
[1750004232052,0.07799254,105650.0,105640.0,0.33396726]
[1750004232275,0.18796866,105650.0,105640.0,0.33396726]
[1750004232499,0.82167432,105650.0,105640.0,0.28594625]
[1750004232954,0.21636303,105650.0,105640.0,0.28594625]
[1750004233179,0.049538,105650.0,105640.0,0.28594625]
[1750004233762,0.05900285,105650.0,105640.0,0.28594625]
[1750004234223,0.04953791,105650.0,105640.0,0.28594625]
[1750004234446,0.06846779,105650.0,105640.0,0.28594625]
[1750004234674,0.04953773,105650.0,105640.0,0.28594625]
[1750004234892,0.04007324,105650.0,105640.0,0.28594625]
[1750004235335,0.049538,105650.0,105640.0,0.28594625]
[1750004235573,0.04007324,105650.0,105640.0,0.28594625]
[1750004235790,0.05900303,105650.0,105640.0,0.28594625]
[1750004236011,0.04007324,105650.0,105640.0,0.28594625]
[1750004236227,0.003,105650.0,105640.0,0.28594625]
[1750004236886,0.003,105650.0,105640.0,0.38209547]
[1750004237103,0.003,105650.0,105640.0,0.41046901]
[1750004237797,0.003,105650.0,105640.0,0.31431979]
[1750004238946,0.0124644,105650.0,105640.0,0.28594625]
[1750004240249,0.003,105650.0,105640.0,0.28594625]
[1750004241421,0.01246449,105650.0,105640.0,0.28594625]
[1750004241623,0.003,105650.0,105640.0,0.28594625]
[1750004242331,0.0124644,105650.0,105640.0,0.28594625]
[1750004243627,0.003,105650.0,105640.0,0.28594625]
[1750004244996,0.003,105650.0,105640.0,0.44294625]
[1750004246603,0.01246449,105650.0,105640.0,0.44294625]
[1750004246813,0.003,105650.0,105640.0,0.44294625]
[1750004247233,0.01246449,105650.0,105640.0,0.44294625]
[1750004247453,0.003,105650.0,105640.0,0.44294625]
[1750004248563,0.74951739,105650.0,105640.0,0.23354222]
[1750004248820,0.76844736,105650.0,105640.0,0.24673992]
[1750004249050,0.76844736,105650.0,105640.0,0.25620558]
[1750004249051,0.0313941,105650.0,105640.0,0.25620558]
[1750004249278,0.03139428,105650.0,105640.0,0.28187106]
[1750004249517,0.003,105650.0,105640.0,0.35115753]
[1750004249745,0.003,105650.0,105640.0,1.11607105]
[1750004250448,0.001,105650.0,105640.0,0.57778721]
[1750004250764,0.25379528,105660.0,105650.0,0.2826997]
[1750004250878,0.44308167,105660.0,105650.0,0.27323512]
[1750004251112,1.07751473,105660.0,105650.0,0.28269988]
[1750004251763,1.07751473,105660.0,105650.0,0.27323512]
[1750004251982,0.96243822,105660.0,105650.0,0.23327036]
[1750004252206,0.94351012,105660.0,105650.0,0.01996]
[1750004252673,0.94351012,105660.0,105650.0,0.2092643]
[1750004253557,0.97481012,105660.0,105650.0,0.01996]
[1750004254215,5.68481912,105660.0,105650.0,0.01996]
[1750004255766,5.68481912,105660.0,105630.0,0.01]
[1750004255767,5.27666281,105640.0,105630.0,0.01]
[1750004255995,5.26725362,105610.0,105600.0,0.06624866]
[1750004256220,4.90887244,105600.0,105590.0,0.0160779]
[1750004256443,4.90887244,105600.0,105590.0,0.02495142]
[1750004256701,5.6139057,105600.0,105590.0,0.0160779]
[1750004256909,4.710009,105600.0,105590.0,0.0160779]
[1750004257130,0.20833241,105600.0,105590.0,0.2463631]
[1750004257351,0.36561214,105600.0,105590.0,0.28319155]
[1750004257600,0.38455107,105600.0,105590.0,0.28873591]
[1750004257840,0.91336594,105600.0,105590.0,0.26237683]
[1750004258070,0.7466167,105600.0,105590.0,0.0729651]
[1750004258284,0.7466167,105600.0,105590.0,0.06409259]
[1750004258285,0.9038567,105600.0,105590.0,0.06409259]
[1750004258588,0.20833286,105600.0,105590.0,0.07396536]
[1750004258798,0.93171994,105600.0,105590.0,0.07296534]
[1750004259054,0.9689795,105600.0,105590.0,0.05656555]
[1750004259306,1.09832126,105600.0,105590.0,0.01955174]
[1750004259556,6.3456141,105600.0,105590.0,0.02842517]
[1750004259807,5.11180642,105600.0,105590.0,0.01955174]
[1750004260016,5.31052642,105600.0,105590.0,0.02842518]
[1750004260242,6.3870941,105600.0,105590.0,0.02842518]
[1750004260483,6.3870941,105600.0,105590.0,0.01655174]
[1750004260697,6.3870941,105600.0,105590.0,0.02542527]
[1750004260913,5.65052642,105600.0,105590.0,0.02542527]
[1750004261150,6.5283741,105600.0,105590.0,0.02542564]
[1750004261364,6.7271341,105600.0,105590.0,0.02542577]
[1750004261797,6.7271341,105600.0,105590.0,0.02542574]
[1750004262913,6.69087454,105600.0,105590.0,0.02542574]
[1750004263381,6.69087454,105600.0,105590.0,0.03549265]
[1750004263382,5.82448894,105600.0,105590.0,0.03549265]
[1750004263589,0.40574038,105600.0,105590.0,0.28473469]
[1750004263825,0.55407078,105600.0,105590.0,0.28473458]
[1750004264044,0.56354029,105600.0,105590.0,0.27584471]
[1750004264256,0.05627078,105600.0,105590.0,0.28473412]
[1750004264473,0.06574029,105600.0,105590.0,0.27584471]
[1750004264689,0.76178413,105600.0,105590.0,0.28473408]
[1750004264912,0.76178413,105600.0,105590.0,0.28473406]
[1750004265138,0.76178413,105600.0,105590.0,0.27584471]
[1750004265357,1.02838907,105600.0,105590.0,0.02544109]
[1750004265573,0.87062907,105600.0,105590.0,0.02544172]
[1750004265801,1.69387467,105600.0,105590.0,0.02544184]
[1750004266025,6.74388367,105600.0,105590.0,0.01655174]
[1750004266286,6.77235367,105600.0,105590.0,0.02544226]
[1750004266508,6.77235367,105600.0,105590.0,0.01655174]
[1750004267581,6.77435367,105600.0,105590.0,0.01655174]
[1750004268432,6.77535367,105600.0,105590.0,0.01655174]
[1750004270174,6.77535367,105600.0,105590.0,0.03551174]
[1750004270614,5.69878599,105600.0,105590.0,0.03551174]
[1750004270831,5.95220061,105600.0,105590.0,0.03551174]
[1750004271051,6.11024061,105600.0,105590.0,0.03551174]
[1750004271273,0.07827163,105600.0,105590.0,0.29817515]
[1750004271495,0.41633467,105600.0,105590.0,0.28870519]
[1750004271712,0.7680107,105600.0,105590.0,0.25522361]
[1750004271939,0.7680107,105600.0,105590.0,0.2741647]
[1750004272149,1.02235992,105600.0,105590.0,0.26833511]
[1750004272368,1.02235992,105600.0,105590.0,0.25333511]
[1750004272820,1.02239992,105600.0,105590.0,0.2438647]
[1750004273038,1.02235992,105600.0,105590.0,0.25333511]
[1750004273488,6.26118307,105600.0,105590.0,0.03551174]
[1750004273706,5.72289923,105600.0,105590.0,0.03551174]
[1750004273972,5.62675001,105600.0,105590.0,0.03551174]
[1750004277195,5.62675001,105600.0,105590.0,0.22492361]
[1750004277401,5.62675001,105600.0,105590.0,0.03551174]
[1750004277606,5.62675001,105600.0,105590.0,0.22492361]
[1750004277812,5.62675001,105600.0,105590.0,0.25333511]
[1750004278021,4.89907224,105600.0,105590.0,0.34247597]
[1750004278212,5.66462742,105600.0,105590.0,0.30327548]
[1750004278924,0.95461842,105600.0,105590.0,0.30327548]
[1750004280497,0.94514945,105600.0,105590.0,0.30327548]
[1750004281327,0.93568021,105600.0,105590.0,0.25333511]
[1750004281537,0.91674101,105600.0,105590.0,0.22492361]
[1750004281748,1.01289023,105600.0,105590.0,0.03551174]
[1750004281950,1.89117407,105600.0,105590.0,0.03551174]
[1750004282159,1.38135823,105600.0,105590.0,0.03551174]
[1750004283100,0.84307439,105600.0,105590.0,0.03551174]
[1750004283333,1.95064207,105600.0,105590.0,0.03551174]
[1750004283541,6.66065107,105600.0,105590.0,0.03551174]
[1750004283759,6.75689283,105600.0,105590.0,0.03551174]
[1750004284416,5.68032515,105600.0,105590.0,0.03551174]
[1750004284621,6.75689283,105600.0,105590.0,0.03551174]
[1750004286940,5.68032515,105600.0,105590.0,0.03551174]
[1750004287168,6.21876899,105600.0,105590.0,0.03551174]
[1750004287809,6.75705283,105600.0,105590.0,0.03551174]
[1750004288237,6.75705283,105600.0,105590.0,0.01655174]
[1750004288447,6.09169977,105600.0,105590.0,0.01655174]
[1750004288656,6.09169977,105600.0,105590.0,0.02541704]
[1750004288867,6.11973071,105600.0,105590.0,0.02541713]
[1750004289150,6.11973071,105600.0,105590.0,0.0254171]
[1750004289360,6.11973071,105600.0,105590.0,0.01655174]
[1750004289564,6.11993071,105600.0,105590.0,0.01655174]
[1750004289769,6.11993071,105600.0,105590.0,0.0254171]
[1750004289974,6.11993071,105600.0,105590.0,0.01655174]
[1750004290189,6.18804899,105600.0,105590.0,0.0254171]
[1750004290395,6.18804899,105600.0,105590.0,0.0443771]
[1750004290597,6.18800899,105600.0,105590.0,0.04437707]
[1750004290810,6.02940899,105600.0,105590.0,0.04437707]
[1750004291014,6.18796899,105600.0,105590.0,0.04437707]
[1750004291234,6.02940899,105600.0,105590.0,0.04437707]
[1750004291435,6.02940899,105600.0,105590.0,0.03551174]
[1750004291670,6.18792899,105600.0,105590.0,0.04437707]
[1750004292342,6.18788899,105600.0,105590.0,0.04437707]
[1750004292558,6.18788899,105600.0,105590.0,0.03551174]
[1750004293441,6.18788899,105600.0,105590.0,0.04437707]
[1750004294104,6.18788899,105600.0,105590.0,0.03551174]
[1750004294324,6.18788899,105600.0,105590.0,0.04437707]
[1750004294543,6.18780899,105600.0,105590.0,0.04437707]
[1750004294758,6.09165977,105600.0,105590.0,0.04437707]
[1750004294975,6.09165977,105600.0,105590.0,0.04437706]
[1750004295410,6.09165977,105600.0,105590.0,0.04437707]
[1750004295596,6.09165977,105600.0,105590.0,0.04437706]
[1750004296051,6.18780899,105600.0,105590.0,0.03551174]
[1750004296264,6.18780899,105600.0,105590.0,0.04437707]
[1750004296487,6.74159283,105600.0,105590.0,0.03551174]
[1750004296703,6.75759283,105600.0,105590.0,0.04437707]
[1750004296916,6.75759283,105600.0,105590.0,0.03551174]
[1750004297133,6.75759283,105600.0,105590.0,0.04437707]
[1750004297356,5.52262515,105600.0,105590.0,0.03551174]
[1750004297580,6.78570377,105600.0,105590.0,0.03551174]
[1750004298259,6.75767283,105600.0,105590.0,0.03551174]
[1750004299421,5.68110515,105600.0,105590.0,0.03551174]
[1750004299623,5.58495593,105600.0,105590.0,0.03551174]
[1750004299841,6.09173977,105600.0,105590.0,0.03551174]
[1750004300920,6.10783977,105600.0,105590.0,0.03551174]
[1750004301784,6.09173977,105600.0,105590.0,0.03551174]
[1750004302633,5.93325977,105600.0,105590.0,0.03551174]
[1750004302857,6.09241977,105600.0,105590.0,0.03551174]
[1750004304002,6.18856899,105600.0,105590.0,0.03551174]
[1750004304216,6.02940899,105600.0,105590.0,0.03551174]
[1750004304488,6.09233977,105600.0,105590.0,0.03551174]
[1750004305127,5.55405593,105600.0,105590.0,0.03551174]
[1750004305336,6.09233977,105600.0,105590.0,0.03551174]
[1750004306200,6.09233977,105600.0,105550.0,0.05074827]
[1750004306201,0.19893898,105560.0,105550.0,0.05074827]
[1750004306424,0.19893898,105560.0,105550.0,0.24970256]
[1750004306425,0.17846575,105560.0,105550.0,0.24970256]
[1750004306652,0.18944775,105570.0,105550.0,0.24970256]
[1750004306653,0.52944775,105580.0,105570.0,0.0156]
[1750004306884,0.32882134,105590.0,105570.0,0.0156]
[1750004306885,0.21768675,105590.0,105580.0,0.0094714]
[1750004307106,0.37750283,105590.0,105580.0,0.2547131]
[1750004307319,0.72697261,105590.0,105580.0,0.26418405]
[1750004307536,0.72697261,105590.0,105580.0,0.2547131]
[1750004307753,0.56729261,105590.0,105580.0,0.2547131]
[1750004307971,1.11510462,105590.0,105580.0,0.0318]
[1750004308230,1.27486462,105590.0,105580.0,0.24017252]
[1750004308447,1.27486462,105590.0,105580.0,0.2401727]
[1750004308448,1.27786462,105590.0,105580.0,0.2401727]
[1750004308661,1.2683943,105590.0,105580.0,0.2307013]
[1750004309099,0.72063987,105590.0,105580.0,0.24017261]
[1750004309321,1.26839412,105590.0,105580.0,0.25911487]
[1750004309541,1.26839412,105590.0,105580.0,0.24964383]
[1750004309753,1.26839412,105590.0,105580.0,0.25064383]
[1750004309754,1.27339412,105590.0,105580.0,0.25064383]
[1750004309973,1.26839412,105590.0,105580.0,0.24964383]
[1750004310188,1.26839412,105590.0,105580.0,0.24017261]
[1750004310403,1.27039412,105590.0,105580.0,0.24017261]
[1750004310617,1.26092371,105590.0,105580.0,0.24017261]
[1750004310835,1.26092371,105590.0,105580.0,0.24964374]
[1750004311056,0.01894199,105580.0,105570.0,0.27307686]
[1750004311271,0.17906199,105580.0,105570.0,0.27307686]
[1750004311914,0.18849321,105580.0,105570.0,0.27307686]
[1750004312342,0.18949321,105580.0,105570.0,0.27307686]
[1750004312765,0.19896452,105580.0,105570.0,0.27307686]
[1750004312986,0.19996452,105580.0,105570.0,0.27307686]
[1750004313202,0.03988398,105580.0,105570.0,0.27307686]
[1750004313418,0.19988398,105580.0,105570.0,0.27307686]
[1750004315200,0.03988398,105580.0,105570.0,0.27307686]
[1750004315655,0.01894413,105570.0,105560.0,0.032]
[1750004315866,0.75614801,105570.0,105560.0,0.24041025]
[1750004316081,0.75614801,105570.0,105560.0,0.22146414]
[1750004316296,0.72773159,105570.0,105560.0,0.04654085]
[1750004316729,0.72773159,105570.0,105560.0,0.032]
[1750004316949,0.75620459,105570.0,105560.0,0.032]
[1750004317169,0.75620459,105570.0,105560.0,0.033]
[1750004317385,1.13787485,105570.0,105560.0,0.002]
[1750004317605,5.84788385,105570.0,105560.0,0.002]
[1750004317818,5.96593359,105570.0,105560.0,0.002]
[1750004318276,5.96589359,105570.0,105560.0,0.002]
[1750004318496,5.45890975,105570.0,105560.0,0.002]
[1750004318711,5.99719359,105570.0,105560.0,0.002]
[1750004319622,5.99719359,105570.0,105560.0,0.001]
[1750004319834,6.09434281,105570.0,105560.0,0.001]
[1750004320053,0.1989388,105560.0,105550.0,0.00014145]
[1750004320270,0.73722264,105560.0,105550.0,0.00014145]
[1750004320920,0.76569864,105560.0,105550.0,0.00014145]
[1750004321343,0.76569864,105560.0,105550.0,0.00214145]
[1750004321985,0.8073689,105560.0,105550.0,0.00214145]
[1750004322196,0.76569864,105560.0,105550.0,0.00214145]
[1750004322660,0.77517165,105560.0,105550.0,0.23388568]
[1750004322873,0.76569864,105560.0,105550.0,0.21609919]
[1750004323106,0.76569864,105560.0,105550.0,0.23388568]
[1750004323325,0.76569864,105560.0,105550.0,0.21609919]
[1750004323559,0.76569864,105560.0,105550.0,0.22441159]
[1750004323781,0.75622554,105560.0,105550.0,0.21609919]
[1750004324007,0.75622554,105560.0,105550.0,0.23388568]
[1750004324220,0.75622554,105560.0,105550.0,0.23388567]
[1750004324658,0.94409501,105560.0,105550.0,0.21609919]
[1750004325074,0.91582554,105560.0,105550.0,0.21609919]
[1750004326186,0.91582554,105560.0,105550.0,0.01214145]
[1750004326820,0.91582554,105560.0,105550.0,0.21109928]
[1750004327295,0.91582554,105560.0,105550.0,0.00947418]
[1750004327505,0.01894755,105550.0,105540.0,0.2572768]
[1750004327715,0.55723139,105550.0,105540.0,0.25741883]
[1750004327924,0.56670521,105550.0,105540.0,0.25741883]
[1750004328139,0.76566295,105550.0,105540.0,0.24794456]
[1750004328995,0.5761793,105550.0,105540.0,0.24794456]
[1750004329250,0.6715514,105550.0,105540.0,0.23254456]
[1750004329454,1.35116186,105550.0,105540.0,0.19911863]
[1750004329678,1.27479476,105550.0,105540.0,0.19164364]
[1750004329910,0.01894701,105550.0,105540.0,0.81426649]
[1750004330120,0.02842083,105550.0,105540.0,0.27598265]
[1750004330330,0.01894701,105550.0,105540.0,0.27798265]
[1750004330547,0.01894701,105550.0,105540.0,0.27598265]
[1750004330760,0.01894701,105550.0,105540.0,0.27398265]
[1750004330971,0.02842083,105550.0,105540.0,0.27398265]
[1750004331177,0.03789483,105550.0,105540.0,0.27398265]
[1750004331387,0.05877351,105550.0,105540.0,0.27398265]
[1750004331599,0.15492273,105550.0,105540.0,0.27398265]
[1750004331816,0.34440638,105550.0,105540.0,0.25503384]
[1750004332026,0.78654181,105550.0,105540.0,0.27398373]
[1750004332450,0.58758398,105550.0,105540.0,0.27398373]
[1750004332668,0.78654172,105550.0,105540.0,0.28345818]
[1750004332877,0.7960159,105550.0,105540.0,0.28345818]
[1750004333298,0.78654226,105550.0,105540.0,0.27398373]
[1750004333712,0.78654226,105550.0,105540.0,0.28345818]
[1750004333996,0.78654226,105550.0,105540.0,0.27398373]
[1750004334676,0.78654226,105550.0,105540.0,0.28345827]
[1750004335554,0.24825842,105550.0,105540.0,0.28345827]
[1750004335764,0.58758443,105550.0,105540.0,0.28345764]
[1750004337133,0.03982605,105550.0,105540.0,0.28345764]
[1750004337364,0.04930005,105550.0,105540.0,0.28345764]
[1750004337578,0.07777805,105550.0,105540.0,0.28345764]
[1750004337784,0.06830405,105550.0,105540.0,0.28345764]
[1750004337990,0.07777805,105550.0,105540.0,0.28345764]
[1750004338203,0.06830405,105550.0,105540.0,0.28345764]
[1750004339079,0.02087868,105550.0,105540.0,0.44285764]
[1750004339302,0.03035223,105550.0,105540.0,0.44285764]
[1750004339519,0.00947337,105550.0,105540.0,0.42390784]
[1750004340173,0.01894692,105550.0,105540.0,0.46678784]
[1750004340386,0.06919661,105550.0,105540.0,0.26450784]
[1750004340614,0.06919661,105550.0,105540.0,0.46690784]
[1750004340826,0.06919652,105550.0,105540.0,0.46690784]
[1750004341037,0.07867034,105550.0,105540.0,0.46690784]
[1750004341953,0.09984656,105550.0,105540.0,0.46690784]
[1750004342157,0.01894692,105550.0,105540.0,0.46690784]
[1750004342362,0.00947337,105550.0,105540.0,0.46690784]
[1750004343237,0.01894692,105550.0,105540.0,0.46690784]
[1750004344737,0.00947337,105550.0,105540.0,0.46690784]
[1750004345182,1.11517375,105560.0,105550.0,0.21790511]